fUSD/lending_fUSD_20240209
["ID","MTS","AMOUNT","RATE_DAILY","PERIOD"]
[313620091,1707486645299,-248.17085233,0.00022897,2]
[313620092,1707486645309,-6131.12670171,0.00022897,2]
[313620093,1707486645318,-212.67476727,0.00022897,2]
[313620094,1707486645328,-648.80908148,0.00022897,2]
[313620095,1707486645337,-1045.64554811,0.00022897,2]
[313620096,1707486645347,-1431.54591864,0.00022897,2]
[313620097,1707486645357,-1000.0,0.00022898,5]
[313620098,1707486645367,-1000.0,0.00022898,5]
[313620099,1707486645376,-1000.0,0.00022898,5]
[313620100,1707486645386,-255.03639813,0.00022898,5]
[313620101,1707486645397,-176.21256355,0.00022899,2]
[313620102,1707486645406,-2000.0,0.00022899,2]
[313620103,1707486645416,-200.0,0.00022899,2]
[313620104,1707486645425,-348.44898442,0.00022899,2]
[313620105,1707486645435,-14637.1050147,0.000229,2]
[313620106,1707486645469,-1243.14480617,0.000229,2]
[313620107,1707486645480,-1496.42778088,0.000229,2]
[313620108,1707486645492,-32647.03239825,0.000229,2]
[313620109,1707486645501,-17361.71825804,0.000229,2]
[313620110,1707486645527,-3077.6243263,0.000229,2]
[313620111,1707486645551,-1266.5382313,0.000229,2]
[313620112,1707486645563,-474.23147968,0.000229,2]
[313620113,1707486645580,-77819.88770468,0.000229,2]
[313620114,1707486645589,-163.4680029,0.000229,2]
[313620115,1707486645598,-1746.20832295,0.000229,2]
[313620116,1707486645607,-1400.0,0.000229,8]
[313620117,1707486645616,-242.42,0.00022952,2]
[313620118,1707486645626,-155.0,0.00022997,2]
[313620119,1707486645635,-158.80278134,0.00022997,2]
[313620120,1707486645644,-213751.76446108,0.00022999,2]
[313620121,1707486645657,-31407.30117879,0.00022999,2]
[313620122,1707486645689,-304.28292398,0.00022999,2]
[313620123,1707486645700,-1527.69938051,0.00022999,2]
[313620124,1707486645712,-2195.45421964,0.00022999,2]
[313620125,1707486645727,-251.9428799,0.00022999,2]
[313620126,1707486645739,-473.47005,0.00022999,2]
[313620127,1707486645750,-1013.89253256,0.00022999,2]
[313620128,1707486645762,-671.67365734,0.00022999,2]
[313620129,1707486645774,-2003.66301177,0.00022999,2]
[313620130,1707486645786,-4825.24,0.00022999,2]
[313620131,1707486645902,-187.31837388,0.00022899,2]
[313620132,1707486645911,-1007.68164812,0.00022999,2]
[313620133,1707486645923,-1921.87499979,0.00022999,2]
[313620134,1707486645935,-6435.48618723,0.00022999,2]
[313620142,1707486646183,-2416.96942512,0.00022999,2]
[313620143,1707486646243,-9517.6,0.00022999,2]
[313620144,1707486646255,-940.57221401,0.00022999,2]
[313620145,1707486646661,-147379.16046071,0.00022999,2]
[313620146,1707486646671,-1052.2086177,0.00022999,2]
[313620147,1707486646679,-1663.68728648,0.00022999,2]
[313620148,1707486646689,-3159.10290502,0.00022999,2]
[313620149,1707486646698,-2912.99141125,0.00022999,2]
[313620150,1707486646706,-305.64203213,0.00022999,2]
[313620151,1707486646715,-322.03955302,0.00022999,2]
[313620152,1707486646724,-1316.08392254,0.00022999,2]
[313620153,1707486646733,-3159.13814169,0.00022999,2]
[313620154,1707486646742,-500.0,0.00022999,2]
[313620155,1707486646751,-375.90380562,0.00022999,2]
[313620156,1707486646760,-510.88385965,0.00022999,2]
[313620157,1707486646769,-447.75650072,0.00022999,2]
[313620158,1707486646779,-468.96142728,0.00022999,2]
[313620159,1707486646788,-385.64628154,0.00022999,2]
[313620160,1707486646797,-15323.47965598,0.00023,2]
[313620161,1707486646842,-17774.65141388,0.00023,2]
[313620162,1707486646853,-13783.48114242,0.00023,2]
[313620163,1707486646862,-315.79414295,0.00023,2]
[313620164,1707486646871,-155.64463355,0.00023,2]
[313620165,1707486646880,-23086.68102833,0.00023,2]
[313620166,1707486646905,-219.45295733,0.000229,2]
[313620167,1707486646914,-488.28808218,0.00023,2]
[313620168,1707486646929,-5274.9999999,0.00023,2]
[313620169,1707486654450,19047.95231035,0.00022427,2]
[313620170,1707486654703,162.38826991,0.00020698,2]
[313620171,1707486655471,624.74925821,0.00021855,2]
[313620172,1707486658222,283.98955369,0.00022427,2]
[313620173,1707486658592,285.44492535,0.00022427,2]
[313620174,1707486658811,221.77404607,0.000222,2]
[313620175,1707486661552,155.0,0.00022427,2]
[313620176,1707486664100,3328.1177335,0.00022427,2]
[313620177,1707486664121,2781.14441448,0.00022427,2]
[313620178,1707486666114,155.0,0.00021848,2]
[313620179,1707486666402,3139.99367387,0.00021848,2]
[313620180,1707486667184,3923.86191165,0.00022427,2]
[313620181,1707486667215,1288.49495218,0.00022427,2]
[313620182,1707486667311,1102.30328697,0.00022427,2]
[313620183,1707486668077,2609.20176085,0.00022427,2]
[313620184,1707486668096,1000.0,0.00022427,2]
[313620185,1707486668119,8446.14346078,0.00022427,2]
[313620186,1707486671146,421.74823004,0.00022077,2]
[313620187,1707486671292,624.74925821,0.00022078,2]
[313620188,1707486673381,320.8501624,0.00022998,10]
[313620189,1707486673434,320.8501624,0.00022999,10]
[313620190,1707486673472,320.8501624,0.00022999,10]
[313620191,1707486673499,320.8501624,0.00022999,10]
[313620192,1707486673537,320.8501624,0.00022999,10]
[313620193,1707486673592,320.8501624,0.00022999,10]
[313620194,1707486673648,320.8501624,0.00022999,10]
[313620195,1707486676553,17813.1259,0.00022423,2]
[313620196,1707486679414,166.153185,0.00020697,2]
[313620197,1707486682553,2512.47302928,0.0002,2]
[313620198,1707486686074,12055.34522163,0.00020698,2]
[313620199,1707486689495,624.74925821,0.00022077,2]
[313620200,1707486691937,359.05943351,0.00022998,10]
[313620201,1707486695268,185.86400761,0.00022,2]
[313620202,1707486704075,12055.34522163,0.00020698,2]
[313620203,1707486707623,621.61483591,0.00022077,2]
[313620204,1707486724076,12055.34522163,0.00020698,2]
[313620205,1707486746098,11380.21911348,0.00022077,2]
[313620206,1707486746405,150.0,0.00022,2]
[313620207,1707486754146,1396.45350749,0.00022468,2]
[313620208,1707486772356,303.93,0.0002249,2]
[313620209,1707486780181,200.0,0.00022388,2]
[313620210,1707486798661,2981.4637,0.00022423,2]
[313620211,1707486799502,176.0,0.00016712,2]
[313620212,1707486812922,627.941124,0.00022431,2]
[313620213,1707486814273,295.67225821,0.00022,2]
[313620214,1707486818275,250.0,0.00021984,2]
[313620215,1707486844385,23900.0,0.00021984,2]
[313620216,1707486864168,200.0,0.00021908,2]
[313620217,1707486873294,150.0,0.00021889,2]
[313620218,1707486880239,509.63,0.00021871,2]
[313620219,1707486911397,200.0,0.00021858,2]
[313620220,1707486922333,-1000000.0,0.0004163,30]
[313620221,1707486922360,-200.0,0.0004163,30]
[313620222,1707486922386,-999800.0,0.0004163,30]
[313620223,1707486929328,-440200.0,0.0004163,30]
[313620224,1707486929354,-99525.48259155,0.0004163,30]
[313620225,1707486929379,-268845.129999,0.0004163,30]
[313620226,1707486929403,-10066.90874024,0.0004163,30]
[313620227,1707486929429,-500.0,0.0004163,120]
[313620228,1707486929454,-3883.0,0.0004163,120]
[313620229,1707486929478,-199.48117131,0.0004163,120]
[313620230,1707486929502,-406.81282183,0.0004163,120]
[313620231,1707486929526,-300.0,0.0004163,41]
[313620232,1707486929550,-9988.23410034,0.0004163,60]
[313620233,1707486929576,-1148.45451256,0.0004163,90]
[313620234,1707486929599,-89328.14482926,0.0004163,30]
[313620235,1707486929622,-164.58602482,0.0004163,60]
[313620236,1707486929647,-199.91437974,0.0004163,120]
[313620237,1707486929671,-1042.41745826,0.0004163,35]
[313620238,1707486929695,-737.66920716,0.0004163,120]
[313620239,1707486929719,-360.81310047,0.0004163,120]
[313620240,1707486929742,-447.79073113,0.0004163,120]
[313620241,1707486929765,-2869.11605036,0.0004163,120]
[313620242,1707486929787,-546.76139963,0.0004163,120]
[313620243,1707486929813,-6181.69107424,0.0004163,30]
[313620244,1707486929837,-150.85261177,0.0004163,120]
[313620245,1707486929860,-150.89060698,0.0004163,120]
[313620246,1707486929883,-1572.18916829,0.0004163,120]
[313620247,1707486929906,-150.27503094,0.0004163,120]
[313620248,1707486929930,-726783.0,0.0004163,30]
[313620249,1707486929953,-7113.9744802,0.0004163,120]
[313620250,1707486929977,-49944.30051901,0.0004163,120]
[313620251,1707486930000,-6834.65455101,0.0004163,120]
[313620252,1707486930024,-11050.73448248,0.0004163,120]
[313620253,1707486930047,-250.85299332,0.0004163,120]
[313620254,1707486930072,-39642.86794488,0.0004163,120]
[313620255,1707486930099,-606.55149283,0.0004163,120]
[313620256,1707486930123,-200.0,0.0004163,30]
[313620257,1707486930147,-200.0,0.0004163,30]
[313620258,1707486930171,-232.66497781,0.0004163,120]
[313620259,1707486930196,-243.99173909,0.0004163,30]
[313620260,1707486930219,-200.0,0.0004163,30]
[313620261,1707486930243,-200.0,0.0004163,30]
[313620262,1707486930267,-100000.0,0.0004163,120]
[313620263,1707486930291,-1714.241035,0.0004163,30]
[313620264,1707486930315,-201.222857,0.0004163,63]
[313620265,1707486930338,-100039.99044857,0.0004163,30]
[313620266,1707486930679,-15574.33686892,0.0004163,30]
[313620267,1707486934921,-102801.39530351,0.0004163,30]
[313620268,1707486934943,-221944.00561946,0.0004163,30]
[313620269,1707486934965,-119371.40816976,0.0004163,30]
[313620270,1707487022208,25443.63,0.00021849,2]
[313620271,1707487025641,656.96,0.00021849,2]
[313620272,1707487053720,167.84,0.00022485,2]
[313620273,1707487074893,2514.98,0.00021918,2]
[313620274,1707487076512,-250.12807244,0.0003,120]
[313620275,1707487076540,-686.62,0.00033151,120]
[313620276,1707487076570,-150.0,0.0004,120]
[313620277,1707487076600,-421.88123587,0.00041,120]
[313620278,1707487076625,-263.09495336,0.00041093,90]
[313620279,1707487076657,-1000.0,0.00041095,120]
[313620280,1707487076734,-1000.0,0.00041369,120]
[313620281,1707487076806,-1000.0,0.00041643,120]
[313620282,1707487076865,-1000.0,0.00041917,120]
[313620283,1707487076923,-1000.0,0.00042191,120]
[313620284,1707487076978,-1000.0,0.00042465,120]
[313620285,1707487077030,-1000.0,0.00042739,120]
[313620286,1707487077080,-1000.0,0.00043013,120]
[313620287,1707487077125,-1000.0,0.00043287,120]
[313620288,1707487077169,-1000.0,0.00043561,120]
[313620289,1707487077211,-6664.0,0.0004361,60]
[313620290,1707487077235,-1000.0,0.00043835,120]
[313620291,1707487077276,-3206.5834572,0.00044,120]
[313620292,1707487077299,-1385.5114032,0.00044,120]
[313620293,1707487077322,-1000.0,0.00044109,120]
[313620294,1707487077359,-1000.0,0.00044383,120]
[313620295,1707487077395,-100000.0,0.000444,60]
[313620296,1707487077421,-1000.0,0.00044657,120]
[313620297,1707487077456,-1000.0,0.00044931,120]
[313620298,1707487077493,-337.31249849,0.00045,60]
[313620299,1707487077515,-3276.01295228,0.00045,120]
[313620300,1707487077543,-1000.0,0.00045205,120]
[313620301,1707487077577,-1000.0,0.00045479,120]
[313620302,1707487077610,-1000.0,0.00045753,120]
[313620303,1707487077645,-4827.50967251,0.0004588,100]
[313620304,1707487077670,-415.48752138,0.00046027,120]
[313620305,1707487077704,-1043.955,0.00046111,60]
[313620306,1707487077729,-712.89,0.00046301,60]
[313620307,1707487077751,-576.59,0.00046301,60]
[313620308,1707487077773,-711.36,0.00046301,60]
[313620309,1707487077796,-527.71,0.00046301,60]
[313620310,1707487077818,-607.17,0.00046301,60]
[313620311,1707487077841,-1417.37,0.00046301,60]
[313620312,1707487077864,-863.48,0.00046301,60]
[313620313,1707487077887,-735.33,0.00046301,60]
[313620314,1707487077908,-500.0,0.00046301,60]
[313620315,1707487077932,-1448.12,0.00046301,60]
[313620316,1707487077955,-941.43,0.00046301,60]
[313620317,1707487077977,-1111.84,0.00046301,60]
[313620318,1707487078000,-3580.07,0.00046301,60]
[313620319,1707487078022,-912.23,0.00046301,60]
[313620320,1707487078044,-870.43,0.00046301,60]
[313620321,1707487078067,-500.0,0.00046301,60]
[313620322,1707487078089,-500.0,0.00046301,60]
[313620323,1707487078111,-620.97,0.00046301,60]
[313620324,1707487078134,-564.88,0.00046301,60]
[313620325,1707487078156,-650.82,0.00046301,60]
[313620326,1707487078180,-2937.23,0.00046301,60]
[313620327,1707487078202,-703.51,0.00046301,60]
[313620328,1707487078225,-569.08,0.00046301,60]
[313620329,1707487078247,-611.30101976,0.00046301,60]
[313620330,1707487078270,-667.56,0.00046301,60]
[313620331,1707487078292,-500.0,0.00046301,60]
[313620332,1707487078315,-538.74,0.00046301,60]
[313620333,1707487078340,-21966.85,0.00046301,60]
[313620334,1707487078363,-791.57,0.00046301,60]
[313620335,1707487078386,-514.45,0.00046301,60]
[313620336,1707487078409,-471.22111268,0.00046301,60]
[313620337,1707487078433,-996.6,0.00046301,60]
[313620338,1707487078456,-3097.97,0.00046301,60]
[313620339,1707487078480,-2736.41,0.00046301,60]
[313620340,1707487078503,-2715.51,0.00046301,60]
[313620341,1707487078729,-598.05,0.00046301,60]
[313620342,1707487078753,-711.14,0.00046301,60]
[313620343,1707487078777,-1333.07,0.00046301,60]
[313620344,1707487078799,-2659.59,0.00046301,60]
[313620345,1707487078823,-2014.58,0.00046301,60]
[313620346,1707487078845,-16819.13,0.00046301,60]
[313620347,1707487078867,-150.0,0.00046301,60]
[313620348,1707487078889,-793.46,0.00046301,60]
[313620349,1707487078913,-3269.25,0.00046301,60]
[313620350,1707487078937,-1305.68,0.00046301,60]
[313620351,1707487078959,-882.64,0.00046301,60]
[313620352,1707487078982,-1250.8,0.00046301,60]
[313620353,1707487079006,-1453.49,0.00046301,60]
[313620354,1707487079029,-617.37,0.00046301,60]
[313620355,1707487079053,-878.75,0.00046301,60]
[313620356,1707487079078,-1956.89,0.00046301,60]
[313620357,1707487079101,-1163.83,0.00046301,60]
[313620358,1707487079125,-929.94,0.00046301,60]
[313620359,1707487079149,-2104.23,0.00046301,60]
[313620360,1707487079173,-1822.33,0.00046301,60]
[313620361,1707487079195,-990.25,0.00046301,60]
[313620362,1707487079217,-4543.63,0.00046301,60]
[313620363,1707487079239,-500.0,0.00046301,60]
[313620364,1707487079261,-654.43,0.00046301,60]
[313620365,1707487079283,-4876.36,0.00046301,60]
[313620366,1707487079306,-6200.32,0.00046301,60]
[313620367,1707487079329,-500.0,0.00046301,60]
[313620368,1707487079351,-500.0,0.00046301,60]
[313620369,1707487079374,-500.0,0.00046301,60]
[313620370,1707487079396,-2087.52,0.00046301,60]
[313620371,1707487079419,-626.94,0.00046301,60]
[313620372,1707487079443,-503.59,0.00046301,60]
[313620373,1707487079467,-966.13,0.00046301,60]
[313620374,1707487079490,-1057.95,0.00046301,60]
[313620375,1707487079512,-4540.88,0.00046301,60]
[313620376,1707487079536,-1696.77,0.00046301,60]
[313620377,1707487079559,-2681.57,0.00046301,60]
[313620378,1707487079581,-2136.6,0.00046301,60]
[313620379,1707487079603,-7956.28,0.00046301,60]
[313620380,1707487079626,-2464.82,0.00046301,60]
[313620381,1707487079649,-10995.22,0.00046301,60]
[313620382,1707487079672,-5521.98,0.00046301,60]
[313620383,1707487079695,-654.99,0.00046301,60]
[313620384,1707487079717,-669.29,0.00046301,60]
[313620385,1707487079739,-1000.11,0.00046301,60]
[313620386,1707487079762,-5917.14,0.00046301,60]
[313620387,1707487079784,-3338.33,0.00046301,60]
[313620388,1707487079807,-1127.0,0.00046301,60]
[313620389,1707487079829,-1654.49,0.00046301,60]
[313620390,1707487079852,-20192.2,0.00046301,60]
[313620391,1707487079878,-556.45,0.00046301,60]
[313620392,1707487079901,-536.28,0.00046301,60]
[313620393,1707487079925,-500.0,0.00046301,60]
[313620394,1707487079948,-500.0,0.00046301,60]
[313620395,1707487079972,-4856.26,0.00046301,60]
[313620396,1707487079995,-793.37,0.00046301,60]
[313620397,1707487080018,-1541.64,0.00046301,60]
[313620398,1707487080045,-160.06447868,0.00046301,60]
[313620399,1707487080070,-3437.21,0.00046301,60]
[313620400,1707487080095,-1332.18,0.00046301,60]
[313620401,1707487080119,-2687.51,0.00046301,60]
[313620402,1707487080143,-548.89,0.00046301,60]
[313620403,1707487080167,-767.91,0.00046301,60]
[313620404,1707487080199,-30778.37,0.00046301,60]
[313620405,1707487080226,-2416.82,0.00046301,60]
[313620406,1707487080252,-504.84,0.00046301,60]
[313620407,1707487080278,-675.64,0.00046301,60]
[313620408,1707487080303,-500.0,0.00046301,60]
[313620409,1707487080329,-6300.17,0.00046301,60]
[313620410,1707487080355,-566.47,0.00046301,60]
[313620411,1707487080382,-1767.38,0.00046301,60]
[313620412,1707487080410,-2484.77,0.00046301,60]
[313620413,1707487080439,-500.0,0.00046301,60]
[313620414,1707487080464,-1412.06,0.00046301,60]
[313620415,1707487080489,-959.36,0.00046301,60]
[313620416,1707487080517,-1063.18,0.00046301,60]
[313620417,1707487080542,-1045.03,0.00046301,60]
[313620418,1707487080566,-906.86,0.00046301,60]
[313620419,1707487080589,-2178.75,0.00046301,60]
[313620420,1707487080612,-500.0,0.00046301,60]
[313620421,1707487080636,-3115.29,0.00046301,60]
[313620422,1707487080659,-2930.12,0.00046301,60]
[313620423,1707487080685,-540.08,0.00046301,60]
[313620424,1707487080708,-518.84,0.00046301,60]
[313620425,1707487080732,-1081.62,0.00046301,60]
[313620426,1707487080757,-1561.58,0.00046301,60]
[313620427,1707487080781,-518.42,0.00046301,60]
[313620428,1707487080804,-635.68,0.00046301,60]
[313620429,1707487080828,-916.0,0.00046301,60]
[313620430,1707487080853,-500.0,0.00046301,60]
[313620431,1707487080876,-500.0,0.00046301,60]
[313620432,1707487080901,-8148.69,0.00046301,60]
[313620433,1707487080926,-792.43,0.00046301,60]
[313620434,1707487080950,-181.67974057,0.00046301,60]
[313620435,1707487080975,-13299.26,0.00046301,60]
[313620436,1707487080999,-500.0,0.00046301,60]
[313620437,1707487081023,-808.15,0.00046301,60]
[313620438,1707487081046,-562.48,0.00046301,60]
[313620439,1707487081071,-2542.57,0.00046301,60]
[313620440,1707487081094,-1246.8,0.00046301,60]
[313620441,1707487081119,-776.48,0.00046301,60]
[313620442,1707487081143,-741.23,0.00046301,60]
[313620443,1707487081167,-500.0,0.00046301,60]
[313620444,1707487081192,-698.48,0.00046301,60]
[313620445,1707487081217,-2162.48,0.00046301,60]
[313620446,1707487081240,-3129.95,0.00046301,60]
[313620447,1707487081510,-1634.94,0.00046301,60]
[313620448,1707487081535,-677.1,0.00046301,60]
[313620449,1707487081560,-500.0,0.00046301,60]
[313620450,1707487081583,-1064.38,0.00046301,60]
[313620451,1707487081606,-1314.52,0.00046301,60]
[313620452,1707487081629,-1610.95,0.00046301,60]
[313620453,1707487081652,-987.1,0.00046301,60]
[313620454,1707487081677,-558.21,0.00046301,60]
[313620455,1707487081700,-500.0,0.00046301,60]
[313620456,1707487081722,-1288.44,0.00046301,60]
[313620457,1707487081744,-3513.3,0.00046301,60]
[313620458,1707487081767,-2977.12,0.00046301,60]
[313620459,1707487081790,-923.0,0.00046301,60]
[313620460,1707487081813,-3585.81,0.00046301,60]
[313620461,1707487081838,-1111.32,0.00046301,60]
[313620462,1707487081861,-4092.82,0.00046301,60]
[313620463,1707487081885,-500.0,0.00046301,60]
[313620464,1707487081909,-1968.03,0.00046301,60]
[313620465,1707487081934,-1445.78,0.00046301,60]
[313620466,1707487081961,-810.54,0.00046301,60]
[313620467,1707487081988,-2143.34,0.00046301,60]
[313620468,1707487082013,-842.81,0.00046301,60]
[313620469,1707487082037,-9829.63,0.00046301,60]
[313620470,1707487082068,-4396.32,0.00046301,60]
[313620471,1707487082093,-500.0,0.00046301,60]
[313620472,1707487082119,-1531.14,0.00046301,60]
[313620473,1707487082144,-3098.41,0.00046301,60]
[313620474,1707487082170,-500.0,0.00046301,60]
[313620475,1707487082195,-3134.49,0.00046301,60]
[313620476,1707487082220,-805.62,0.00046301,60]
[313620477,1707487082244,-1285.67,0.00046301,60]
[313620478,1707487082268,-1725.82,0.00046301,60]
[313620479,1707487082292,-850.45,0.00046301,60]
[313620480,1707487082315,-1105.94,0.00046301,60]
[313620481,1707487082339,-555.42,0.00046301,60]
[313620482,1707487082363,-600.94,0.00046301,60]
[313620483,1707487082387,-1181.34,0.00046301,60]
[313620484,1707487082410,-24179.07,0.00046301,60]
[313620485,1707487082435,-1991.35,0.00046301,60]
[313620486,1707487082459,-609.11,0.00046301,60]
[313620487,1707487082485,-2548.88,0.00046301,60]
[313620488,1707487082509,-2801.13,0.00046301,60]
[313620489,1707487082532,-565.44,0.00046301,60]
[313620490,1707487082557,-804.55,0.00046301,60]
[313620491,1707487082584,-3573.17494039,0.00046575,117]
[313620492,1707487082608,-712.89,0.00046575,60]
[313620493,1707487082636,-576.59,0.00046575,60]
[313620494,1707487082661,-711.36,0.00046575,60]
[313620495,1707487082685,-527.71,0.00046575,60]
[313620496,1707487082709,-607.17,0.00046575,60]
[313620497,1707487082733,-1417.37,0.00046575,60]
[313620498,1707487082761,-863.48,0.00046575,60]
[313620499,1707487082786,-735.33,0.00046575,60]
[313620500,1707487082810,-500.0,0.00046575,60]
[313620501,1707487082832,-1448.12,0.00046575,60]
[313620502,1707487082857,-941.43,0.00046575,60]
[313620503,1707487082880,-1111.84,0.00046575,60]
[313620504,1707487082903,-3580.07,0.00046575,60]
[313620505,1707487082926,-912.23,0.00046575,60]
[313620506,1707487082950,-870.43,0.00046575,60]
[313620507,1707487082973,-499.50941731,0.00046575,60]
[313620508,1707487082997,-500.0,0.00046575,60]
[313620509,1707487083021,-620.97,0.00046575,60]
[313620510,1707487083044,-564.88,0.00046575,60]
[313620511,1707487083070,-650.82,0.00046575,60]
[313620512,1707487083093,-2937.23,0.00046575,60]
[313620513,1707487083117,-703.51,0.00046575,60]
[313620514,1707487083140,-569.08,0.00046575,60]
[313620515,1707487083164,-667.56,0.00046575,60]
[313620516,1707487083188,-426.51119589,0.00046575,60]
[313620517,1707487083213,-538.74,0.00046575,60]
[313620518,1707487083239,-21966.85,0.00046575,60]
[313620519,1707487083262,-791.57,0.00046575,60]
[313620520,1707487083286,-514.45,0.00046575,60]
[313620521,1707487083311,-996.6,0.00046575,60]
[313620522,1707487083336,-3097.97,0.00046575,60]
[313620523,1707487083361,-2736.41,0.00046575,60]
[313620524,1707487083386,-2715.51,0.00046575,60]
[313620525,1707487083411,-711.14,0.00046575,60]
[313620526,1707487083436,-598.05,0.00046575,60]
[313620527,1707487083461,-1333.07,0.00046575,60]
[313620528,1707487083486,-2659.59,0.00046575,60]
[313620529,1707487083513,-2014.58,0.00046575,60]
[313620530,1707487083538,-16819.13,0.00046575,60]
[313620531,1707487083563,-150.0,0.00046575,60]
[313620532,1707487083588,-793.46,0.00046575,60]
[313620533,1707487083613,-3269.25,0.00046575,60]
[313620534,1707487083638,-1305.68,0.00046575,60]
[313620535,1707487083662,-882.64,0.00046575,60]
[313620536,1707487083688,-1250.8,0.00046575,60]
[313620537,1707487083712,-1453.49,0.00046575,60]
[313620538,1707487083737,-617.37,0.00046575,60]
[313620539,1707487083761,-878.75,0.00046575,60]
[313620540,1707487083785,-1956.89,0.00046575,60]
[313620541,1707487083809,-1163.83,0.00046575,60]
[313620542,1707487083833,-929.94,0.00046575,60]
[313620543,1707487083857,-2104.23,0.00046575,60]
[313620544,1707487083881,-1822.33,0.00046575,60]
[313620545,1707487083905,-990.25,0.00046575,60]
[313620546,1707487083929,-4543.63,0.00046575,60]
[313620547,1707487083953,-500.0,0.00046575,60]
[313620548,1707487083977,-654.43,0.00046575,60]
[313620549,1707487084001,-4876.36,0.00046575,60]
[313620550,1707487084027,-6200.32,0.00046575,60]
[313620551,1707487084239,-500.0,0.00046575,60]
[313620552,1707487084264,-552.158993,0.00046575,60]
[313620553,1707487084287,-432.73127641,0.00046575,60]
[313620554,1707487084312,-2087.52,0.00046575,60]
[313620555,1707487084335,-626.94,0.00046575,60]
[313620556,1707487084360,-503.59,0.00046575,60]
[313620557,1707487084383,-966.13,0.00046575,60]
[313620558,1707487084406,-1057.95,0.00046575,60]
[313620559,1707487084431,-4540.88,0.00046575,60]
[313620560,1707487084453,-1696.77,0.00046575,60]
[313620561,1707487084478,-2681.57,0.00046575,60]
[313620562,1707487084502,-2136.6,0.00046575,60]
[313620563,1707487084527,-7956.28,0.00046575,60]
[313620564,1707487084552,-2464.82,0.00046575,60]
[313620565,1707487084578,-10995.22,0.00046575,60]
[313620566,1707487084603,-5521.98,0.00046575,60]
[313620567,1707487084627,-654.99,0.00046575,60]
[313620568,1707487084650,-669.29,0.00046575,60]
[313620569,1707487084674,-1000.11,0.00046575,60]
[313620570,1707487084702,-5917.14,0.00046575,60]
[313620571,1707487084725,-3338.33,0.00046575,60]
[313620572,1707487084750,-1127.0,0.00046575,60]
[313620573,1707487084773,-1654.49,0.00046575,60]
[313620574,1707487084797,-20192.2,0.00046575,60]
[313620575,1707487084820,-556.45,0.00046575,60]
[313620576,1707487084845,-536.28,0.00046575,60]
[313620577,1707487084870,-500.0,0.00046575,60]
[313620578,1707487084893,-500.0,0.00046575,60]
[313620579,1707487084917,-4856.26,0.00046575,60]
[313620580,1707487084940,-793.37,0.00046575,60]
[313620581,1707487084964,-1541.64,0.00046575,60]
[313620582,1707487084988,-3437.21,0.00046575,60]
[313620583,1707487085012,-1332.18,0.00046575,60]
[313620584,1707487085039,-2687.51,0.00046575,60]
[313620585,1707487085066,-548.89,0.00046575,60]
[313620586,1707487085091,-767.91,0.00046575,60]
[313620587,1707487085119,-30778.37,0.00046575,60]
[313620588,1707487085144,-504.84,0.00046575,60]
[313620589,1707487085171,-675.64,0.00046575,60]
[313620590,1707487085198,-2416.82,0.00046575,60]
[313620591,1707487085223,-543.684858,0.00046575,60]
[313620592,1707487085249,-6300.17,0.00046575,60]
[313620593,1707487085277,-566.47,0.00046575,60]
[313620594,1707487085301,-1767.38,0.00046575,60]
[313620595,1707487085329,-2484.77,0.00046575,60]
[313620596,1707487085354,-553.85775791,0.00046575,60]
[313620597,1707487085379,-1412.06,0.00046575,60]